bitfinex/quotes_SOLUSD_20251116
["timestamp","ask_amount","ask_price","bid_price","bid_amount"]
[1763323773183,0.7,138.01,137.98,9.78882769]
[1763323773511,0.7,138.01,137.98,3.82837678]
[1763323775404,0.67,138.03,137.98,4.04837678]
[1763323775578,0.67,138.02,137.99,9.78882769]
[1763323775775,103.87,138.04,138.0,3.82837678]
[1763323776077,103.87,138.04,138.01,9.78882769]
[1763323776509,103.2,138.04,138.01,3.82837678]
[1763323776681,103.87,138.04,138.01,3.82837678]
[1763323777300,0.67,138.03,138.02,9.78882769]
[1763323777507,103.87,138.04,138.02,9.78882769]
[1763323777718,103.87,138.04,138.01,13.61720447]
[1763323779120,103.2,138.04,138.01,13.61720447]
[1763323779328,103.87,138.04,138.01,13.61720447]
[1763323779619,0.67,138.03,138.0,9.78882769]
[1763323779990,0.67,138.03,138.0,13.61720447]
[1763323780222,0.67,138.03,138.02,9.78882769]
[1763323780544,103.2,138.04,138.02,9.78882769]
[1763323780707,0.67,138.06,138.02,13.61720447]
[1763323781011,22.6512,138.08,138.02,13.61720447]
[1763323781318,0.67,138.07,138.04,9.78882769]
[1763323783417,0.67,138.07,138.04,3.82837678]
[1763323784112,103.87,138.13,138.06,3.82837678]
[1763323784355,103.87,138.13,138.05,10.00882769]
[1763323784356,0.67,138.13,138.11,9.78882769]
[1763323785225,0.1,138.14,138.12,9.78882769]
[1763323785442,0.77,138.14,138.12,9.78882769]
[1763323785942,0.1,138.14,138.13,13.83720447]
[1763323787344,0.1,138.14,138.13,21.0767614]
[1763323787748,0.1,138.14,138.13,9.78882769]
[1763323788069,3.82837678,138.19,138.13,9.78882769]
[1763323788070,0.67,138.19,138.14,9.78882769]
[1763323788350,0.67,138.19,138.14,13.61720447]
[1763323788835,4.49837678,138.19,138.14,13.61720447]
[1763323789033,3.82837678,138.18,138.13,13.61720447]
[1763323789253,0.67,138.18,138.15,9.78882769]
[1763323790748,4.49837678,138.18,138.14,9.78882769]
[1763323791128,0.67,138.17,138.14,9.78882769]
[1763323791538,0.67,138.17,138.15,3.82837678]
[1763323791947,0.67,138.17,138.14,9.78882769]
[1763323792242,0.67,138.17,138.14,17.44558125]
[1763323792635,0.67,138.17,138.14,13.61720447]
[1763323793756,3.82837678,138.16,138.1,9.78882769]
[1763323793925,3.82837678,138.16,138.12,13.61720447]
[1763323794256,4.49837678,138.15,138.11,9.78882769]
[1763323794643,3.82837678,138.13,138.1,9.78882769]
[1763323794824,0.67,138.12,138.1,9.78882769]
[1763323795144,0.67,138.12,138.09,9.78882769]
[1763323797765,3.11841054,138.12,138.08,9.78882769]
[1763323798134,0.67,138.11,138.08,9.78882769]
[1763323800039,0.67,138.11,138.06,27.13712827]
[1763323800040,3.11841054,138.11,138.06,19.89399179]
[1763323800250,2.44841054,138.08,138.07,9.78882769]
[1763323800435,103.2,138.12,138.07,12.23723823]
[1763323800631,3.12841054,138.11,138.06,12.23723823]
[1763323801039,0.68,138.1,138.06,12.23723823]
[1763323801451,0.68,138.1,138.06,12.45723823]
[1763323801958,0.68,138.1,138.07,2.44841054]
[1763323802760,0.68,138.1,138.06,12.23723823]
[1763323804758,0.68,138.1,138.06,9.78882769]
[1763323804959,2.44841054,138.07,138.06,31.55556086]
[1763323805136,2.44841054,138.07,138.03,9.78882769]
[1763323805460,3.12841054,138.06,138.02,9.78882769]
[1763323805666,3.12841054,138.05,138.0,2.44841054]
[1763323805863,2.44841054,138.03,137.98,2.44841054]
[1763323806037,2.44841054,138.02,137.99,21.7777939]
[1763323806240,2.44841054,138.02,137.98,9.78882769]
[1763323806451,0.68,138.01,137.98,34.01503213]
[1763323806661,0.68,138.01,137.98,24.22620444]
[1763323807162,0.68,138.01,137.99,9.78882769]
[1763323807542,0.68,138.01,137.98,9.78882769]
[1763323807842,0.68,138.01,137.98,31.57136535]
[1763323808045,0.68,138.01,137.98,9.78882769]
[1763323809055,22.6512,138.11,138.01,9.78882769]
[1763323809253,2.44841054,138.04,138.01,9.78882769]
[1763323809563,0.68,138.03,137.99,2.44841054]
[1763323809768,3.12841054,138.03,137.98,12.23723823]
[1763323810070,2.44841054,138.0,137.95,2.44841054]
[1763323810362,0.68,138.0,137.98,31.57136535]
[1763323810580,0.68,138.0,137.98,9.78882769]
[1763323811863,0.68,138.02,137.98,12.23723823]
[1763323812062,0.68,138.04,138.0,2.44841054]
[1763323812381,0.68,138.04,138.01,9.78882769]
[1763323813093,3.12841054,138.04,138.01,9.78882769]
[1763323813377,3.12841054,138.04,138.0,9.78882769]
[1763323813546,0.68,138.03,138.0,9.78882769]
[1763323814488,3.12841054,138.03,138.0,9.78882769]
[1763323814788,25.77961054,138.03,137.98,9.78882769]
[1763323815083,0.68,138.02,137.98,12.23723823]
[1763323815774,0.68,138.02,138.0,9.78882769]
[1763323816476,0.68,138.02,138.01,9.78882769]
[1763323817279,0.68,138.02,137.99,9.78882769]
[1763323817581,0.68,138.02,138.01,9.78882769]
[1763323818387,3.12841054,138.02,137.98,9.78882769]
[1763323818689,3.12841054,138.02,137.99,9.91574081]
[1763323818852,0.66,138.01,137.99,9.91574081]
[1763323819054,0.66,138.01,137.98,9.78882769]
[1763323819368,0.66,138.01,137.98,19.7045685]
[1763323824796,0.66,138.05,138.01,9.78882769]
[1763323825675,0.66,138.05,138.01,19.57765538]
[1763323828610,0.66,138.05,138.03,9.78882769]
[1763323840184,0.66,138.05,138.02,9.78882769]
[1763323840410,0.66,138.05,138.02,29.36648307]
[1763323842217,0.66,138.05,138.02,9.78882769]
[1763323842893,2.44841054,138.06,138.02,9.78882769]
[1763323843106,2.44841054,138.08,138.04,9.78882769]
[1763323845012,0.67,138.07,138.04,9.78882769]
[1763323846396,103.87,138.1,138.06,9.78882769]
[1763323846807,103.87,138.1,138.06,12.89723823]
[1763323847514,103.87,138.1,138.08,9.78882769]
[1763323847990,0.67,138.09,138.06,12.23723823]
[1763323848890,0.67,138.09,138.06,12.89723823]
[1763323851294,3.11841054,138.09,138.05,9.78882769]
[1763323851624,0.67,138.09,138.05,12.89723823]
[1763323851909,0.67,138.08,138.05,12.23723823]
[1763323852503,105.64841054,138.1,138.05,12.89723823]
[1763323852706,0.67,138.09,138.05,12.89723823]
[1763323853009,0.67,138.09,138.05,12.23723823]
[1763323853213,0.67,138.09,138.05,12.89723823]
[1763323855635,0.67,138.14,138.08,2.44841054]
[1763323855820,0.67,138.14,138.11,9.78882769]
[1763323857095,2.44841054,138.12,138.1,9.78882769]
[1763323857307,2.44841054,138.11,138.04,2.44841054]
[1763323857636,2.44841054,138.08,138.03,3.10841054]
[1763323857791,2.44841054,138.06,138.01,3.10841054]
[1763323857998,2.44841054,138.06,138.02,9.78882769]
[1763323858322,0.67,138.05,138.02,9.78882769]
[1763323860216,3.82960587,138.08,138.04,9.78882769]
[1763323860414,4.52960587,138.08,138.04,9.78882769]
[1763323860615,103.2,138.1,138.06,9.78882769]
[1763323860820,0.7,138.08,138.06,9.78882769]
[1763323861004,4.52960587,138.08,138.05,9.78882769]
[1763323861424,0.7,138.07,138.04,9.78882769]
[1763323862729,4.52960587,138.07,138.03,9.78882769]
[1763323863100,0.7,138.06,138.03,9.78882769]
[1763323863937,0.7,138.06,138.03,13.61843356]
[1763323864403,0.7,138.06,138.03,9.78882769]
[1763323864604,0.7,138.06,138.03,13.61843356]
[1763323865031,0.7,138.06,138.03,9.78882769]
[1763323867212,0.7,138.06,138.0,21.77463255]
[1763323867213,3.82960587,138.04,138.0,21.77463255]
[1763323867431,103.9,138.06,138.01,9.78882769]
[1763323867728,3.82960587,138.04,138.01,9.78882769]
[1763323868231,0.7,138.03,138.0,9.78882769]
[1763323868427,4.52960587,138.03,137.99,9.78882769]
[1763323869134,4.52960587,138.02,137.98,9.78882769]
[1763323869432,4.52960587,138.02,137.97,13.61843356]
[1763323869609,0.7,138.01,137.97,14.29843356]
[1763323870218,0.7,138.01,137.97,13.61843356]
[1763323870831,3.82960587,138.0,137.96,9.78882769]
[1763323871136,3.82960587,137.98,137.94,9.78882769]
[1763323871648,0.7,137.97,137.94,9.78882769]
[1763323872305,0.7,137.97,137.93,9.78882769]
[1763323872529,0.7,137.97,137.93,13.61843356]
[1763323873038,4.52960587,137.97,137.93,9.78882769]
[1763323873636,0.7,137.96,137.93,9.78882769]
[1763323874030,4.52960587,137.96,137.92,9.98882769]
[1763323874221,3.82960587,137.94,137.92,9.98882769]
[1763323874407,3.82960587,137.94,137.92,0.2]
[1763323874606,0.7,137.93,137.92,0.2]
[1763323874811,4.52960587,137.93,137.92,0.2]
[1763323875310,22.6512,137.96,137.92,0.2]
[1763323875508,103.2,137.99,137.92,4.02960587]
[1763323875730,0.71,137.97,137.94,13.61843356]
[1763323875935,0.71,137.98,137.94,13.61843356]
[1763323876237,4.53960587,137.97,137.92,13.81843356]
[1763323876539,0.71,137.97,137.94,9.78882769]
[1763323876745,0.71,137.96,137.94,9.78882769]
[1763323877517,4.53960587,137.98,137.94,9.78882769]
[1763323877815,0.71,137.97,137.94,9.78882769]
[1763323878343,4.53960587,137.97,137.92,4.02960587]
[1763323878517,3.82960587,137.96,137.92,0.2]
[1763323878719,4.53960587,137.96,137.92,0.2]
[1763323878939,0.71,137.95,137.92,0.2]
[1763323880245,0.71,137.95,137.92,4.02960587]
[1763323880437,0.71,137.95,137.92,0.2]
[1763323880643,0.71,137.95,137.92,4.02960587]
[1763323880834,22.6512,137.99,137.93,13.61843356]
[1763323880835,0.71,137.98,137.93,13.61843356]
[1763323881154,103.2,138.03,137.97,3.82960587]
[1763323881444,0.71,138.01,137.97,3.82960587]
[1763323882320,0.71,138.01,137.98,9.78882769]
[1763323884821,4.53960587,138.01,137.96,3.82960587]
[1763323885036,0.71,138.0,137.97,9.78882769]
[1763323885217,0.71,138.0,137.96,9.78882769]
[1763323885218,4.53960587,138.0,137.96,9.78882769]
[1763323885627,0.71,137.99,137.96,9.78882769]
[1763323886720,0.71,137.99,137.96,13.61843356]
[1763323886920,0.71,137.99,137.96,3.82960587]
[1763323887543,0.71,137.99,137.95,13.61843356]
[1763323888343,4.53960587,137.99,137.95,9.78882769]
[1763323888525,0.71,138.01,137.98,9.78882769]
[1763323888724,4.53960587,138.01,137.98,9.78882769]
[1763323888923,0.71,138.01,137.98,9.78882769]
[1763323889222,0.71,138.0,137.98,9.78882769]
[1763323889420,125.8512,138.02,137.98,9.78882769]
[1763323889650,0.71,138.01,137.98,13.61843356]
[1763323889824,0.71,138.01,137.98,9.78882769]
[1763323890225,0.71,138.01,137.98,3.82960587]
[1763323890632,103.2,138.02,137.99,13.61843356]
[1763323890838,103.86,138.02,138.0,9.78882769]
[1763323891033,103.86,138.02,137.99,3.82960587]
[1763323891325,103.86,138.02,138.0,9.78882769]
[1763323892041,50.0,138.12,138.0,9.78882769]
[1763323892042,103.2,138.09,138.02,9.78882769]
[1763323892224,0.66,138.04,138.02,9.78882769]
[1763323892425,0.66,138.04,138.0,3.82960587]
[1763323895653,0.66,138.04,138.02,9.78882769]
[1763323902370,22.6512,138.06,138.02,9.78882769]
[1763323902577,0.66,138.08,138.04,13.61843356]
[1763323903066,0.66,138.08,138.06,9.78882769]
[1763323904544,0.66,138.1,138.06,0.72]
[1763323904857,0.66,138.1,138.06,4.54960587]
[1763323905245,0.66,138.1,138.06,0.72]
[1763323905444,0.66,138.1,138.06,4.54960587]
[1763323906367,0.66,138.1,138.07,9.78882769]
[1763323908347,0.66,138.1,138.05,3.82960587]
[1763323908547,3.82960587,138.09,138.05,9.78882769]
[1763323908756,0.66,138.08,138.05,9.78882769]
[1763323909761,3.82960587,138.06,138.02,9.78882769]
[1763323909961,3.82960587,138.03,137.97,4.54960587]
[1763323910148,3.82960587,138.11,137.98,13.61843356]
[1763323910149,3.82960587,138.04,137.98,13.61843356]
[1763323910468,3.82960587,138.06,138.02,9.78882769]
[1763323910675,22.6512,138.08,138.02,9.78882769]
[1763323910865,0.1,138.19,138.02,3.82960587]
[1763323911070,4.48960587,138.07,138.03,9.78882769]
[1763323911454,4.48960587,138.06,138.02,9.78882769]
[1763323911652,3.82960587,138.04,138.02,9.78882769]
[1763323911856,3.82960587,138.03,137.98,9.78882769]
[1763323912075,3.82960587,138.02,137.98,9.78882769]
[1763323912265,3.82960587,138.02,137.97,9.78882769]
[1763323912576,0.66,138.01,137.97,10.50882769]
[1763323912949,4.48960587,138.01,137.97,9.78882769]
[1763323913480,4.48960587,138.01,137.97,10.50882769]
[1763323914883,0.66,138.0,137.97,10.50882769]
[1763323916788,0.66,138.01,137.97,10.50882769]
[1763323917162,0.66,138.0,137.97,10.50882769]
[1763323917861,0.66,138.0,137.96,9.78882769]
[1763323918073,0.66,138.0,137.96,13.61843356]
[1763323918275,0.66,138.0,137.97,0.72]
[1763323919458,0.66,138.0,137.96,12.24140923]
[1763323919659,0.66,138.0,137.96,12.96140923]
[1763323920155,0.66,138.0,137.95,9.78882769]
[1763323920377,3.11258154,138.0,137.95,9.78882769]
[1763323920580,0.66,138.0,137.95,10.45882769]
[1763323920760,0.7,137.99,137.95,9.78882769]
[1763323921869,0.7,137.99,137.95,10.45882769]
[1763323924079,2.45258154,137.96,137.92,0.2]
[1763323924260,2.45258154,137.96,137.92,9.98882769]
[1763323924461,3.15258154,137.95,137.92,0.2]
[1763323924667,2.45258154,137.94,137.92,0.2]
[1763323924884,2.45258154,137.93,137.92,0.2]
[1763323925060,3.15258154,137.93,137.92,0.2]
[1763323925262,0.7,137.93,137.92,0.2]
[1763323926376,3.15258154,137.93,137.92,0.2]
[1763323927454,22.6512,137.94,137.92,0.2]
[1763323927679,3.15258154,137.94,137.92,0.2]
[1763323927870,0.7,137.94,137.92,0.2]
[1763323928191,0.7,137.93,137.92,0.2]
[1763323929586,3.15258154,137.93,137.92,0.2]
[1763323929879,25.80378154,137.93,137.92,0.2]
[1763323931188,22.6512,137.93,137.92,0.2]
[1763323931353,3.15258154,137.93,137.92,0.2]
[1763323931780,2.45258154,137.94,137.92,0.2]
[1763323931965,3.15258154,137.94,137.92,0.2]
[1763323932986,0.7,137.93,137.92,0.2]
[1763323934782,3.15258154,137.94,137.92,0.2]
[1763323935770,2.45258154,137.94,137.92,0.2]
[1763323935962,0.7,137.93,137.92,0.2]
[1763323936761,2.45258154,137.94,137.92,0.2]
[1763323936762,3.15258154,137.94,137.92,0.2]
[1763323937082,103.2,137.96,137.93,9.78882769]
[1763323937286,103.2,137.96,137.95,9.78882769]
[1763323937465,3.15258154,138.0,137.95,9.78882769]
[1763323937666,0.7,137.99,137.95,12.92140923]
[1763323938207,2.45258154,138.0,137.97,9.78882769]
[1763323938689,0.7,138.0,137.97,9.78882769]
[1763323941383,25.80378154,138.0,137.96,9.78882769]
[1763323941984,0.7,137.99,137.96,9.78882769]
[1763323942192,0.7,137.99,137.95,9.78882769]
[1763323942395,0.7,137.99,137.95,10.46882769]
[1763323945000,3.15258154,138.01,137.97,9.78882769]
[1763323945193,0.7,138.01,137.97,12.24140923]
[1763323945397,2.45258154,138.02,137.97,12.24140923]
[1763323945607,0.7,138.02,137.99,9.78882769]
[1763323945980,128.30378154,138.03,137.98,12.24140923]
[1763323946297,103.9,138.03,137.99,0.68]
[1763323947696,2.45258154,138.0,137.96,9.78882769]
[1763323948070,0.7,138.0,137.96,12.92140923]
[1763323948267,0.7,138.0,137.96,3.13258154]
[1763323948997,0.7,138.0,137.96,2.45258154]
[1763323949296,0.7,138.0,137.96,3.13258154]
[1763323949502,3.15258154,138.0,137.96,0.68]
[1763323949710,3.15258154,138.0,137.95,12.92140923]
[1763323950008,3.15258154,138.0,137.96,0.68]
[1763323950598,2.45258154,138.01,137.95,9.78882769]
[1763323950912,0.7,138.0,137.96,3.13258154]
[1763323951208,0.7,138.0,137.96,0.68]
[1763323954093,0.7,138.0,137.95,12.92140923]
[1763323954493,3.15258154,138.0,137.96,0.68]
[1763323954895,0.7,138.0,137.96,0.68]
[1763323957224,0.7,138.0,137.96,3.13258154]
[1763323957515,2.45258154,138.01,137.96,3.13258154]
[1763323957516,106.35258154,138.03,137.99,9.78882769]
[1763323958011,106.35258154,138.03,137.99,10.46882769]
[1763323958193,105.65258154,138.03,137.99,10.46882769]
[1763323958508,106.35258154,138.03,137.99,10.46882769]
[1763323959714,103.9,138.03,137.99,10.46882769]
[1763323960092,103.9,138.03,137.99,12.92140923]
[1763323960295,103.9,138.03,137.99,10.46882769]
[1763323961319,103.2,138.03,137.99,10.46882769]
[1763323961625,0.7,138.02,137.99,10.46882769]
[1763323964695,103.2,138.03,137.99,9.78882769]
[1763323964914,0.7,138.02,137.99,9.78882769]
[1763323965113,105.65258154,138.03,137.99,10.46882769]
[1763323965398,0.7,138.02,137.99,10.46882769]
[1763323967926,105.65258154,138.03,137.99,9.78882769]
[1763323968237,103.9,138.03,138.01,9.78882769]
[1763323968415,103.9,138.03,138.0,9.78882769]
[1763323971203,103.2,138.03,138.0,9.78882769]
[1763323971625,103.9,138.03,138.0,9.78882769]
[1763323971824,0.7,138.02,138.0,9.78882769]
[1763323972222,103.2,138.1,137.99,19.48800572]
[1763323972523,1.99999999,138.12,137.99,19.48800572]
[1763323972524,0.7,138.04,138.0,3.13258154]
[1763323973123,0.7,138.04,138.0,2.45258154]
[1763323973626,2.45258154,138.03,137.99,9.78882769]
[1763323973922,2.45258154,138.01,137.98,9.78882769]
[1763323974221,0.7,138.03,137.97,9.78882769]
[1763323974411,2.45258154,138.01,137.97,10.46882769]
[1763323974815,0.7,138.0,137.97,9.78882769]
[1763323978010,3.15258154,138.0,137.96,9.78882769]
[1763323978414,0.7,137.99,137.96,9.78882769]
[1763323978926,0.7,137.99,137.96,3.83258474]
[1763323979818,0.7,137.99,137.96,4.51258474]
[1763323980018,23.3512,138.01,137.98,9.78882769]
[1763323980323,0.69,138.02,138.0,9.78882769]
[1763323985343,0.69,138.02,137.97,7.90758634]
[1763323985344,0.69,138.02,137.98,13.62141243]
[1763323985629,0.69,138.02,137.98,9.78882769]
[1763323985630,4.52258474,138.02,137.98,9.78882769]
[1763323986013,0.69,138.01,137.98,9.78882769]
[1763323986428,4.52258474,138.03,138.0,9.78882769]
[1763323986810,0.69,138.02,137.99,9.78882769]
[1763323987115,4.52258474,138.02,137.99,9.78882769]
[1763323987322,4.52258474,138.02,137.98,9.78882769]
[1763323987512,0.69,138.01,137.98,9.78882769]
[1763323988421,0.69,138.01,137.97,9.78882769]
[1763323988818,27.17378474,138.01,137.97,9.78882769]
[1763323989212,0.69,138.0,137.97,9.78882769]
[1763323999454,103.2,138.05,137.97,9.78882769]
[1763323999655,4.55258474,138.03,137.99,9.78882769]
[1763323999953,3.83258474,138.02,137.98,9.78882769]
[1763324000163,4.55258474,138.02,137.98,9.78882769]
[1763324000339,0.72,138.01,137.97,9.78882769]
[1763324000535,4.55258474,138.01,137.97,9.78882769]
[1763324000948,0.72,138.0,137.97,9.78882769]
[1763324004161,0.72,138.02,137.98,4.55258474]
[1763324004453,3.83258474,138.03,137.98,4.55258474]
[1763324004663,0.72,138.01,137.98,4.55258474]
[1763324006542,0.72,138.01,137.98,3.83258474]
[1763324008036,0.72,138.01,137.98,4.55258474]
[1763324009558,0.72,138.01,137.97,9.78882769]
[1763324009760,0.72,138.01,137.96,13.62141243]
[1763324010340,4.55258474,138.01,137.96,9.78882769]
[1763324010761,4.51258474,138.0,137.95,9.78882769]
[1763324011153,0.68,137.99,137.95,9.78882769]
[1763324011365,0.68,137.99,137.94,13.62141243]
[1763324011659,0.68,137.99,137.94,14.29141243]
[1763324012666,0.68,137.99,137.95,4.50258474]
[1763324012849,0.68,137.99,137.95,3.83258474]
[1763324013170,0.68,137.99,137.95,4.50258474]
[1763324014048,3.83258474,137.97,137.92,13.82141243]
[1763324014455,0.68,137.96,137.92,13.82141243]
[1763324014656,0.68,137.96,137.92,14.49141243]
[1763324016465,0.68,137.96,137.94,9.78882769]
[1763324017773,0.68,137.96,137.92,4.03258474]
[1763324019572,0.68,137.96,137.92,4.70258474]
[1763324019779,0.68,137.96,137.92,4.03258474]
[1763324020278,0.68,137.96,137.92,4.70258474]
[1763324020648,0.68,137.96,137.92,4.03258474]
[1763324024778,0.68,137.96,137.94,9.78882769]
[1763324025198,23.3312,137.98,137.95,9.78882769]
[1763324025376,0.68,137.97,137.96,9.78882769]
[1763324027983,4.51258474,137.97,137.96,9.78882769]
[1763324028180,4.51258474,137.97,137.92,9.98882769]
[1763324028484,27.16378474,137.96,137.95,9.78882769]
[1763324032085,23.3312,137.96,137.95,9.78882769]
[1763324037507,27.16378474,137.96,137.95,9.78882769]
[1763324037805,4.51258474,137.96,137.92,0.2]
[1763324037991,26.48378474,137.93,137.92,9.98882769]
[1763324038507,27.16378474,137.93,137.92,9.98882769]
[1763324040912,25.78698381,137.93,137.92,9.98882769]
[1763324047209,22.6512,137.93,137.92,9.98882769]
[1763324047405,106.35578381,137.95,137.92,9.98882769]
[1763324047589,0.7,137.94,137.92,9.98882769]
[1763324047786,3.15578381,137.94,137.92,9.98882769]
[1763324048415,0.7,137.93,137.92,9.98882769]
[1763324052122,3.15578381,137.93,137.92,9.98882769]
[1763324052303,3.15578381,137.93,137.92,9.26882769]
[1763324052615,22.6512,137.92,137.89,0.2]
[1763324052798,2.45578381,137.9,137.89,0.2]
[1763324053205,3.15578381,137.9,137.89,0.2]
[1763324054225,0.7,137.9,137.89,0.2]
[1763324054611,0.7,137.91,137.89,0.2]
[1763324054819,0.7,137.9,137.89,0.2]
[1763324056422,2.45578381,137.91,137.89,0.2]
[1763324056624,128.30698381,137.92,137.9,9.78882769]
[1763324056923,103.2,137.92,137.9,9.78882769]
[1763324057123,103.2,137.92,137.9,20.27765538]
[1763324057526,103.2,137.92,137.9,19.57765538]
[1763324057710,103.2,137.92,137.91,10.48882769]
[1763324058027,103.2,137.92,137.91,9.78882769]
[1763324058217,103.2,137.92,137.91,10.48882769]
[1763324058419,103.2,137.92,137.91,20.27765538]
[1763324059734,22.6512,137.94,137.92,9.78882769]
[1763324059921,22.6512,137.94,137.92,10.48882769]
[1763324060108,23.3412,137.94,137.92,10.48882769]
[1763324060625,25.79698381,137.94,137.92,20.97765538]
[1763324061728,25.79698381,137.93,137.89,0.2]
[1763324061936,2.45578381,137.9,137.89,0.2]
[1763324062647,3.14578381,137.9,137.89,0.2]
[1763324063140,2.45578381,137.9,137.89,0.2]
[1763324063313,23.3412,137.92,137.89,0.2]
[1763324063516,25.79698381,137.92,137.9,9.78882769]
[1763324063741,2.45578381,137.91,137.9,9.78882769]
[1763324064944,3.14578381,137.91,137.9,9.78882769]
[1763324066015,2.45578381,137.91,137.9,9.78882769]
[1763324066244,2.45578381,137.91,137.9,0.7]
[1763324066822,25.10698381,137.92,137.9,0.7]
[1763324067016,25.10698381,137.92,137.91,9.78882769]
[1763324068222,25.79698381,137.92,137.91,9.78882769]
[1763324068442,25.79698381,137.92,137.89,10.68882769]
[1763324069242,0.69,137.91,137.9,9.78882769]
[1763324070445,3.14578381,137.91,137.9,9.78882769]
[1763324073046,3.14578381,137.91,137.89,0.2]
[1763324073221,2.45578381,137.9,137.89,0.2]
[1763324073819,3.11578381,137.9,137.89,0.2]
[1763324077751,2.45578381,137.9,137.89,0.2]
[1763324078249,3.11578381,137.9,137.89,0.2]
[1763324080036,2.45578381,137.9,137.89,0.2]
[1763324080334,3.11578381,137.9,137.89,0.2]
[1763324082069,22.6512,137.92,137.89,0.2]
[1763324082070,22.6512,137.92,137.89,0.92]
[1763324082230,2.45578381,137.93,137.9,9.78882769]
[1763324082435,22.6512,137.92,137.9,9.78882769]
[1763324082635,23.3112,137.92,137.9,9.78882769]
[1763324083354,23.3112,137.92,137.9,31.20648307]
[1763324084163,23.3112,137.92,137.9,31.92648307]
[1763324084781,23.3112,137.92,137.9,0.72]
[1763324084782,22.6512,137.92,137.9,0.72]
[1763324084943,22.6512,137.92,137.91,31.58719281]
[1763324085148,25.10698381,137.92,137.91,9.78882769]
[1763324085761,25.76698381,137.92,137.91,9.78882769]
[1763324088675,22.6512,137.92,137.91,9.78882769]
[1763324088884,25.10698381,137.92,137.91,9.78882769]
[1763324089693,25.10698381,137.92,137.91,31.58719281]
[1763324091183,25.76698381,137.92,137.91,31.58719281]
[1763324092484,23.3112,137.92,137.91,31.58719281]
[1763324094379,22.6512,137.92,137.91,31.58719281]
[1763324095292,23.3112,137.92,137.91,31.58719281]
[1763324095984,22.6512,137.92,137.91,32.30719281]
[1763324096163,22.6512,137.92,137.91,31.58719281]
[1763324100289,22.6512,137.92,137.91,32.27719281]
[1763324100493,25.79698381,137.92,137.91,9.78882769]
[1763324100695,25.79698381,137.92,137.89,0.2]
[1763324100872,23.3412,137.92,137.89,10.67882769]
[1763324101272,27.1790647,137.92,137.91,9.78882769]
[1763324101474,22.6512,137.92,137.91,9.78882769]
[1763324101994,23.3412,137.92,137.91,9.78882769]
[1763324102194,22.6512,137.92,137.91,10.47882769]
[1763324102691,22.6512,137.92,137.91,9.78882769]
[1763324104295,27.1790647,137.92,137.89,0.2]
[1763324104475,3.8378647,137.9,137.89,22.00153337]
[1763324104682,3.8378647,137.9,137.89,31.79036106]
[1763324104993,4.5278647,137.9,137.89,9.98882769]
[1763324105886,130.3790647,137.9,137.89,9.98882769]
[1763324106200,126.5412,137.9,137.89,9.98882769]
[1763324106391,130.3790647,137.9,137.89,9.98882769]
[1763324108280,134.2169294,137.9,137.89,9.98882769]
[1763324108985,130.3790647,137.9,137.89,9.98882769]
[1763324111693,125.8512,137.9,137.89,9.98882769]
[1763324111900,130.3790647,137.9,137.89,9.98882769]
[1763324112298,129.6890647,137.9,137.89,9.98882769]
[1763324112800,129.6890647,137.9,137.89,31.79194553]
[1763324113115,130.3790647,137.9,137.89,9.98882769]
[1763324116197,134.2169294,137.9,137.89,0.2]
[1763324120707,134.2169294,137.9,137.86,9.78882769]
[1763324120708,31.0169294,137.9,137.86,9.78882769]
[1763324120891,26.4890647,137.87,137.86,9.78882769]
[1763324121317,27.1990647,137.87,137.86,9.78882769]
[1763324122418,22.6512,137.86,137.84,0.2]
[1763324122606,23.3612,137.86,137.84,9.98882769]
[1763324122796,0.71,137.85,137.84,9.98882769]
[1763324122996,4.5478647,137.85,137.84,0.2]
[1763324123623,30.3269294,137.85,137.82,0.2]
[1763324123821,30.3269294,137.83,137.82,0.2]
[1763324124128,22.6512,137.83,137.82,0.2]
[1763324124302,4.5478647,137.83,137.82,0.2]
[1763324124616,3.8378647,137.83,137.82,0.2]